Workbook

Sheet EtOH Summary
C1: Summary of the Tier 1 Starch and Fiber Ethanol Pathway(s) Release Date: November 28, 2022
C3: Applicant: | D3: =IF(EtOH!D21="","",EtOH!D21) ->  | G3: =CONCATENATE("Location: ",EtOH!D24) -> Location:
C4: Application Number | D4: =IF(EtOH!H21="","",EtOH!H21) -> 
C5: Description: | D5: =IF(EtOH!G24="","",EtOH!G24) -> 
C7: Feedstock Production Electricity Mix | E7: 1- U.S Ave Mix | G7: Fuel Production Electricity Mix | H7: =EtOH!BM29 -> 2-WAMX Mix
C8: Feedstock Production | G8: Fuel Production | J8: Different Scenarios of Starch Ethanol Production | L8: Carbon Intensity (gCO2e/MJ) | M8: Conservative Margin of Safety (gCO2e/MJ) | N8: Total Carbon Intensity (gCO2e/MJ) | O8: Correspondent Volumes (denatured gallons)
C9: Feedstock Production | D9: Column2 | E9: Column1 | G9: Fuel Production | H9: Column1 | J9: Different Scenarios of Ethanol Production | K9: Column1 | L9: Carbon Intensity, g/MJ | M9: Column3 | N9: Column2 | O9: Correspondent Volumes, gallons
C10: Corn Use, bushels | E10: =EtOH!D57 -> 0 | G10: Total Undenatured Ethanol, gallons | H10: =EtOH!AX57 -> 0 | K10: Dry DG | L10: =EtOH!D12 -> 0 | M10: 0 | N10: =Table13[[#This Row],[Carbon Intensity, g/MJ]]+Table13[[#This Row],[Column3]] -> 0 | O10: =EtOH!AG75 -> 0
C11: Sorghum Use, bushels | E11: =EtOH!L57 -> 0 | G11: Total Undenatured Starch Ethanol, gallons | H11: =EtOH!AE69+EtOH!AE70 -> 0 | J11: Corn Ethanol | K11: Modified DG | L11: =EtOH!D14 -> 0 | M11: 0 | N11: =Table13[[#This Row],[Carbon Intensity, g/MJ]]+Table13[[#This Row],[Column3]] -> 0 | O11: =EtOH!AG76 -> 0
C12: Ethanol Yield, gal/bushels | E12: =EtOH!E80 -> 0 | G12: Total Undenatured Fiber Ethanol, gallons | H12: =EtOH!BE57 -> 0 | K12: Wet DG | L12: =EtOH!D16 -> 0 | M12: 0 | N12: =Table13[[#This Row],[Carbon Intensity, g/MJ]]+Table13[[#This Row],[Column3]] -> 0 | O12: =EtOH!AG77 -> 0
C14: Feedstock Transport (Weighted Average) | G14: Energy Consumption | K14: Dry DG | L14: =EtOH!G12 -> 0 | M14: 0 | N14: =Table13[[#This Row],[Carbon Intensity, g/MJ]]+Table13[[#This Row],[Column3]] -> 0 | O14: =EtOH!AJ75 -> 0
C15: Corn Transport by HD Truck, miles | E15: =EtOH!H57 -> 0 | G15: Natural, HHV in MMBtu | H15: =EtOH!BG57 -> 0 | J15: Sorghum Ethanol | K15: Modified DG | L15: =EtOH!G14 -> 0 | M15: 0 | N15: =Table13[[#This Row],[Carbon Intensity, g/MJ]]+Table13[[#This Row],[Column3]] -> 0 | O15: =EtOH!AJ76 -> 0
C16: Corn Transport by Rail, miles | E16: =EtOH!J57 -> 0 | G16: Biogas, HHV in MMBtu | H16: =EtOH!BH57 -> 0 | K16: Wet DG | L16: =EtOH!G16 -> 0 | M16: 0 | N16: =Table13[[#This Row],[Carbon Intensity, g/MJ]]+Table13[[#This Row],[Column3]] -> 0 | O16: =EtOH!AJ77 -> 0
G17: Biomass, Tons | H17: =EtOH!BI57 -> 0
C18: Sorghum Transport by HD Truck, miles | E18: =EtOH!P57 -> 0 | G18: Electricity, kWh | H18: =EtOH!BL57 -> 0 | J18: Corn/Sorghum Fiber Ethanol | L18: =EtOH!J10 -> 0 | M18: 0 | N18: =Table13[[#This Row],[Carbon Intensity, g/MJ]]+Table13[[#This Row],[Column3]] -> 0 | O18: =EtOH!AG78 -> 0
C19: Sorghum Transport by Rail, miles | E19: =EtOH!R57 -> 0 | G19: Other Electricity, kWh | H19: =EtOH!BM57 -> 0
J20: Corn Ethanol | K20: Composite | L20: =IFERROR((L10*O10+L11*O11+L12*O12)/O20,0) -> 0 | M20: 0 | N20: =Table13[[#This Row],[Carbon Intensity, g/MJ]]+Table13[[#This Row],[Column3]] -> 0 | O20: =EtOH!AE75 -> 0
C21: Co-Product Yield, bone-dry lb./gal | E21: =EtOH!AS57 -> 0 | G21: Chemical Usage for Cellulosic | J21: Sorghum Ethanol | K21: Composite | L21: =IFERROR((L14*O14+L15*O15+L16*O16)/O21,0) -> 0 | M21: 0 | N21: =Table13[[#This Row],[Carbon Intensity, g/MJ]]+Table13[[#This Row],[Column3]] -> 0 | O21: =EtOH!AE76 -> 0
C22: Dry Distiller Grains, tons | E22: =EtOH!T57 -> 0 | G22: Cellulosic Enzyme, lbs. | H22: =EtOH!BB57 -> 0
C23: Moisture, % | E23: =EtOH!W57 -> 0
C24: Drying Energy, HHV in MMBtu | E24: =EtOH!X57 -> 0 | G24: Fuel Transport
C25: Modified Distiller Grains, tons | E25: =EtOH!Z57 -> 0 | G25: By HD Truck, miles | H25: =EtOH!BO35 -> 0
C26: Moisture, % | E26: =EtOH!AC57 -> 0 | G26: By Rail, miles | H26: =EtOH!BO33 -> 0
C27: Drying Energy, HHV in MMBtu | E27: =EtOH!AD57 -> 0
C28: Wet Distiller Grains, tons | E28: =EtOH!AF57 -> 0 | G28: Denaturant Usage | H28: =IFERROR(EtOH!AY57/EtOH!AU57,0) -> 0
C29: Moisture, % | E29: =EtOH!AI57 -> 0 | G29: Denaturant, gallons | H29: =EtOH!AY57 -> 0
C30: Syrup DGS, tons | E30: =EtOH!AK57 -> 0
C31: Moisture, % | E31: =EtOH!AN57 -> 0
C32: Corn Oil, tons | E32: =EtOH!AP57/2000 -> 0

Sheet EtOH
D7: Tier 1 Simplified CI Calculator for Starch and Fiber Ethanol | BQ7: This map shows Emissions & Generation Resource Integrated Database (eGRID)
BQ8: 1 | BR8: US Average | BS8: US Average
B9: Pathway Summary and Estimated CI (g/MJ) | L9: Yellow Cells require user input | BQ9: 2 | BR9: WAMX | BS9: Western Electricity Coordinating Council - California
B10: Corn Ethanol Composite CI, g/MJ | D10: =IFERROR((D12*D13+D14*D15+D16*D17)/AE75,0) -> 0 | E10: Sorghum Ethanol (Composite CI), g/MJ | G10: =IFERROR((G12*G13+G14*G15+G16*G17)/AE76,0) -> 0 | H10: Corn/Sorghum Fiber Ethanol CI, g/MJ | J10: =IF(BE57=0,0,(H89+H93+H97+H103+H105+H107+H109+H99+H101)*'EF Tables'!D79+(H111+H112+H113)) -> 0 | L10: Light Blue Cells show CI results | BQ10: 3 | BR10: CAMX | BS10: Western Electricity Coordinating Council - California
B11: Denatured Volume, gal | D11: =AE75 -> 0 | E11: Denatured Volume, gal | G11: =AE76 -> 0 | H11: Denatured Ethanol Volume, gal | J11: =AE78 -> 0 | L11: Green Cells show the calculation button | BQ11: 4 | BR11: NWPP | BS11: Western Electricity Coordinating Council - Northwest
B12: Corn Ethanol (Dry DGS) CI, g/MJ | D12: =IF(OR(D57=0,T57=0),0,(E82+E84+E86+E93+E95+E97+E103+E105+E107+E109+E99+E101)*'EF Tables'!D79+(E111+E112+E113)) -> 0 | E12: Sorghum Ethanol (Dry DGS) CI, g/MJ | G12: =IF(OR(T57=0,L57=0),0,(I82+I84+I86+I93+I95+I97+I103+I105+I107+I109+I99+I101)*'EF Tables'!D79+(I111+I112+I113)) -> 0 | L12: Gray Cells are Calculated Values | BQ12: 5 | BR12: AZNM | BS12: Western Electricity Coordinating Council - Southwest
B13: Denatured Volume, gal | D13: =AG75 -> 0 | E13: Denatured Volume, gal | G13: =AJ75 -> 0 | BQ13: 6 | BR13: RMPA | BS13: Western Electricity Coordinating Council - Rockies
B14: Corn Ethanol (Modified DGS) CI, g/MJ | D14: =IF(OR(D57=0,Z57=0),0,(F82+F84+F86+F93+F95+F97+F103+F105+F107+F109+F99+F101)*'EF Tables'!D79+(F111+F112+F113)) -> 0 | E14: Sorghum Ethanol (Modified DGS) CI, g/MJ | G14: =IF(OR(Z57=0,L57=0),0,(J82+J84+J86+J93+J95+J97+J103+J105+J107+J109+J99+J101)*'EF Tables'!D79+(J111+J112+J113)) -> 0 | BQ14: 7 | BR14: MROW | BS14: Midwest Reliability Organization West
B15: Denatured Volume, gal | D15: =AG76 -> 0 | E15: Denatured Volume, gal | G15: =AJ76 -> 0 | BQ15: 8 | BR15: SPNO | BS15: SERC Reliability Corporation - North
B16: Corn Ethanol (Wet DGS) CI, g/MJ | D16: =IF(OR(D57=0,AF57=0), 0,(G82+G84+G86+G93+G95+G97+G103+G105+G107+G109+G99+G101)*'EF Tables'!D79+(G111+G112+G113)) -> 0 | E16: Sorghum Ethanol (Wet DGS) CI, g/MJ | G16: =IF(OR(AF57=0,L57=0),0,(K82+K84+K86+K93+K95+K97+K103+K105+K107+K109+K99+K101)*'EF Tables'!D79+(K111+K112+K113)) -> 0 | BQ16: 9 | BR16: SPSO | BS16: SERC Reliability Corporation - South
B17: Denatured Volume, gal | D17: =AG77 -> 0 | E17: Denatured Volume, gal | G17: =AJ77 -> 0 | BQ17: 10 | BR17: ERCT | BS17: Electric Reliability Council of Texas - All
BQ18: 11 | BR18: MROE | BS18: Midwest Reliability Organization East
BQ19: 12 | BR19: SRMW | BS19: SERC Reliability Corporation - Midwest
B20: Section 1. Applicant Information | BQ20: 13 | BR20: SRMV | BS20: SERC Reliability Corporation - Mississippi Valley
B21: 1.1. Company Name | G21: 1.2. Application Number | BQ21: 14 | BR21: RFCM | BS21: Reliability First Corporation - Michigan
B22: 1.3. Company ID | BQ22: 15 | BR22: RFCW | BS22: Reliability First Corporation - Midwest
B23: 1.4. Facility ID | BQ23: 16 | BR23: SRTV | BS23: SERC Reliability Corporation - Tennessee Valley
B24: 1.5. Ethanol Production Location (City, State) | F24: 1.6. Application Description | BQ24: 17 | BR24: SRSO | BS24: SERC Reliability Corporation - South
B25: 1.7. Electricity Mix Region for Feedstock | D25: 1-U.S Ave Mix | BQ25: 18 | BR25: NEWE | BS25: Northeast Power Coordinating Council - New England
B26: 1.8. Provisional Pathway? | D26: No | BQ26: 19 | BR26: NYUP | BS26: Northeast Power Coordinating Council - Upstate New York
BQ27: 20 | BR27: RFCE | BS27: Reliability First Corporation - East
B28: Section 2. Feedstock Production Data for Starch Ethanol Production | BG28: Section 3. Fuel Production Energy Consumption and Fuel Transport Data | BQ28: 21 | BR28: NYLI | BS28: Northeast Power Coordinating Council - Long Island
B29: Corn as Feedstock | G29: Corn Transport | K29: Sorghum as Feedstock | O29: Sorghum Transport | S29: Co-Product Production | AT29: Fuel Production | BG29: 3.1. Electricity Mix Region for Fuel | BM29: 2-WAMX Mix | BN29: =IF(BM29="2-User Defined Mix","3.10. Enter Electricity Generation GHG Emission Factor (gCO2e/kWh)","") ->  | BQ29: 22 | BR29: NYCW | BS29: Northeast Power Coordinating Council - New York Westchester
B30: Corn Inventory | G30: 2.6. Corn Transport Data Category | I30: User-Defined for Corn Transport | K30: Sorghum Inventory | O30: 2.12. Sorghum Transport Data Category | Q30: User-Defined for Sorghum Transport | S30: Dry Distiller Grains | Y30: Modified Distiller Grains | AE30: Wet Distiller Grains | AJ30: Syrup | AO30: Corn/Sorghum Oil | AT30: Starch Ethanol Production | AY30: 2.46. Denaturant Data Category | AZ30: Cellulosic Ethanol Production | BG30: Energy Consumption | BN30: Fuel Transport and Distribution | BQ30: 23 | BR30: SRVC | BS30: SERC Reliability Corporation - Virginia/Carolina
B31: 2.1. Reporting Month (MM/YYYY) | C31: 2.2. Beginning Corn Inventory | D31: 2.3. Corn Used (Calculated) | E31: 2.4. Corn Received | F31: 2.5. Ending Corn Inventory | G31: 2.7. Corn Transport from Collection Center to Ethanol Plant (Monthly weighted average) | K31: 2.8. Beginning Sorghum Inventory | L31: 2.9. Sorghum Used (Calculated) | M31: 2.10. Sorghum Received | N31: 2.11. Ending Sorghum Inventory | O31: 2.13. Sorghum Transport from Collection Center to Ethanol Plant (Monthly weighted average) | S31: 2.14. Dry DG Beginning Inventory | T31: 2.15. Dry Distiller Grains Produced | U31: 2.16. Dry Distiller Grains Sales | V31: 2.17. Dry DG Ending Inventory | W31: 2.18. Moisture Content (Monthly weighted average) | X31: 2.19. Drying Energy (metered) | Y31: 2.20. Modified DG Beginning Inventory | Z31: 2.21. Modified Distiller Grains Produced | AA31: 2.22. Modified Distiller Grains Sales | AB31: 2.23. Modified DG Ending Inventory | AC31: 2.24. Moisture Content (Monthly weighted average) | AD31: 2.25. Drying Energy (metered) | AE31: 2.26. Wet DG Beginning Inventory | AF31: 2.27. Wet Distiller Grains Produced | AG31: 2.28. Wet Distiller Grains Sales | AH31: 2.29. Wet DG Ending Inventory | AI31: 2.30. Moisture Content (Monthly weighted average) | AJ31: 2.31. Syrup Beginning Inventory | AK31: 2.32. Syrup Produced | AL31: 2.33. Syrup Sales | AM31: 2.34. Syrup Ending Inventory | AN31: 2.35. Moisture Content (Monthly weighted average) | AO31: 2.36. Beginning Oil Inventory | AP31: 2.37. Oil Produced | AQ31: 2.38. Oil Sales | AR31: 2.39. Ending Oil Inventory | AS31: 2.40. Co-product Yield | AT31: 2.41. Beginning Undenatured Ethanol | AU31: 2.42. Denatured Ethanol Sales | AV31: 2.43. Undenatured Ethanol Sales | AW31: 2.44. Ending Undenatured Ethanol | AX31: 2.45. Undenatured Ethanol Produced | AY31: Denaturant as Standard Value | AZ31: 2.47. Beginning Cellulosic Enzyme | BA31: 2.48. Cellulosic Enzyme Purchase | BB31: 2.49. Cellulosic Enzyme Use | BC31: 2.50. Ending Cellulosic Enzyme | BD31: 2.51. Corn/Sorghum Fiber Allocation | BE31: 2.52. Undenatured Corn/Sorghum Fiber Ethanol | BG31: 3.2. NG Use | BH31: 3.3. Biogas Use | BI31: 3.4. Biomass Use | BJ31: 3.5. Biomass Moisture | BK31: 3.6. Biomass Transport | BL31: 3.7. Electricity Use from grid | BM31: 3.8. Electricity from Co-located Solar or Wind | BN31: 3.9. Finished Fuel Transport | BQ31: 24 | BR31: FRCC | BS31: Florida Reliability Coordinating Council
C32: Bushels | D32: Bushels | E32: Bushels | F32: Bushels | G32: 2.7.a Corn Transported by HDDT (bushels) | H32: 2.7.b HDDT Mileage, miles | I32: 2.7.c Corn Transported by Rail (bushels) | J32: 2.7.d Rail Mileage, miles | K32: Bushels | L32: Bushels | M32: Bushels | N32: Bushels | O32: 2.13.a Sorghum Transported by HDDT (bushels) | P32: 2.13.b HDDT Mileage, miles | Q32: 2.13.c Sorghum Transported by Rail (bushels) | R32: 2.13.d Rail Mileage, miles | S32: Tons | T32: Tons | U32: Tons | V32: Tons | W32: % | X32: mmBTU, HHV | Y32: Tons | Z32: Tons | AA32: Tons | AB32: Tons | AC32: % | AD32: mmBTU, HHV | AE32: Tons | AF32: Tons | AG32: Tons | AH32: Tons | AI32: % | AJ32: Tons | AK32: Tons | AL32: Tons | AM32: Tons | AN32: % | AO32: lbs. | AP32: lbs. | AQ32: lbs. | AR32: lbs. | AS32: Dry matter lbs./gal EtOH | AT32: Gallons @ 60o F | AU32: Gallons @ 60o F | AV32: Gallons @ 60o F | AW32: Gallons @ 60o F | AX32: Gallons @ 60o F | AY32: Gallons @ 60o F | AZ32: lbs. | BA32: lbs. | BB32: lbs. | BC32: lbs. | BD32: % | BE32: Gallons @ 60o F | BG32: mmBTU (HHV) | BH32: mmBTU, HHV | BI32: Tons | BJ32: % | BK32: Miles | BL32: kWh | BM32: kWh | BN32: Mode | BO32: Miles | BQ32: 25 | BR32: AKMS | BS32: Alaska Systems Coordinating Council - Miscellaneous
D33: =C33+E33-F33 -> 0 | L33: =K33+M33-N33 -> 0 | T33: =V33-S33+U33 -> 0 | Z33: =AB33-Y33+AA33 -> 0 | AF33: =AH33-AE33+AG33 -> 0 | AK33: =AM33-AJ33+AL33 -> 0 | AP33: =AR33-AO33+AQ33 -> 0 | AS33: =IFERROR((((T33*(1-W33)+Z33*(1-AC33)+AF33*(1-AI33)+AK33*(1-AN33))*2000)+AP33*(1-0.01))/AX33,0) -> 0 | AX33: =AW33-AT33+AU33+AV33-AY33 -> 0 | AY33: =AU33*0.025 -> 0 | BB33: =AZ33-BC33+BA33 -> 0 | BE33: =IFERROR(BD33*(AX33),0) -> 0 | BN33: 3.9.a. By Rail | BQ33: 26 | BR33: AKGD | BS33: Alaska Systems Coordinating Council - Alaska Grid
D34: =C34+E34-F34 -> 0 | L34: =K34+M34-N34 -> 0 | T34: =V34-S34+U34 -> 0 | Z34: =AB34-Y34+AA34 -> 0 | AF34: =AH34-AE34+AG34 -> 0 | AK34: =AM34-AJ34+AL34 -> 0 | AP34: =AR34-AO34+AQ34 -> 0 | AS34: =IFERROR((((T34*(1-W34)+Z34*(1-AC34)+AF34*(1-AI34)+AK34*(1-AN34))*2000)+AP34*(1-0.01))/AX34,0) -> 0 | AX34: =AW34-AT34+AU34+AV34-AY34 -> 0 | AY34: 0 | BB34: =AZ34-BC34+BA34 -> 0 | BE34: =IFERROR(BD34*(AX34),0) -> 0 | BQ34: 27 | BR34: HIOA | BS34: Hawaii Island Chamber of Commerce - Oahu
D35: 0 | L35: =K35+M35-N35 -> 0 | T35: =V35-S35+U35 -> 0 | Z35: =AB35-Y35+AA35 -> 0 | AF35: 0 | AK35: =AM35-AJ35+AL35 -> 0 | AP35: 0 | AS35: =IFERROR((((T35*(1-W35)+Z35*(1-AC35)+AF35*(1-AI35)+AK35*(1-AN35))*2000)+AP35*(1-0.01))/AX35,0) -> 0 | AX35: =AW35-AT35+AU35+AV35-AY35 -> 0 | AY35: 0 | BB35: 0 | BE35: 0 | BN35: 3.9.b. By HDD Truck | BQ35: 28 | BR35: HIMS | BS35: Hawaii Island Chamber of Commerce - Miscellaneous
D36: 0 | L36: 0 | T36: 0 | Z36: 0 | AF36: 0 | AK36: 0 | AP36: 0 | AS36: 0 | AX36: 0 | AY36: 0 | BB36: =AZ36-BC36+BA36 -> 0 | BE36: 0 | BQ36: 29 | BS36: Brazillian Mix
D37: 0 | L37: 0 | T37: 0 | Z37: 0 | AF37: 0 | AK37: 0 | AP37: 0 | AS37: 0 | AX37: 0 | AY37: 0 | BB37: =AZ37-BC37+BA37 -> 0 | BE37: 0 | BQ37: 30 | BS37: Canadian Mix
D38: 0 | L38: 0 | T38: 0 | Z38: 0 | AF38: 0 | AK38: 0 | AP38: 0 | AS38: 0 | AX38: 0 | AY38: 0 | BB38: 0 | BE38: 0 | BQ38: 31 | BR38: ORGN | BS38: Western Electricity Coordinating Council - Oregon
D39: 0 | L39: 0 | T39: 0 | Z39: 0 | AF39: 0 | AK39: 0 | AP39: 0 | AS39: 0 | AX39: 0 | AY39: 0 | BB39: 0 | BE39: 0 | BQ39: 32 | BS39: User Defined
D40: 0 | L40: 0 | T40: 0 | Z40: 0 | AF40: 0 | AK40: 0 | AP40: 0 | AS40: 0 | AX40: 0 | AY40: 0 | BB40: 0 | BE40: 0
D41: 0 | L41: 0 | T41: 0 | Z41: 0 | AF41: 0 | AK41: 0 | AP41: 0 | AS41: 0 | AX41: =AW41-AT41+AU41+AV41-AY41 -> 0 | AY41: 0 | BB41: 0 | BE41: 0 | BN41: Finished Fuel Distribution Standard Value is at 90 miles by HDDT
D42: 0 | L42: 0 | T42: 0 | Z42: 0 | AF42: 0 | AK42: 0 | AP42: 0 | AS42: 0 | AX42: =AW42-AT42+AU42+AV42-AY42 -> 0 | AY42: 0 | BB42: 0 | BE42: 0
D43: 0 | L43: 0 | T43: 0 | Z43: 0 | AF43: 0 | AK43: 0 | AP43: 0 | AS43: 0 | AX43: 0 | AY43: 0 | BB43: 0 | BE43: 0
D44: 0 | L44: 0 | T44: 0 | Z44: 0 | AF44: 0 | AK44: 0 | AP44: 0 | AS44: 0 | AX44: 0 | AY44: 0 | BB44: 0 | BE44: 0
D45: 0 | L45: 0 | T45: 0 | Z45: 0 | AF45: 0 | AK45: 0 | AP45: 0 | AS45: 0 | AX45: 0 | AY45: 0 | BB45: 0 | BE45: 0
D46: 0 | L46: 0 | T46: 0 | Z46: 0 | AF46: 0 | AK46: 0 | AP46: 0 | AS46: 0 | AX46: 0 | AY46: 0 | BB46: 0 | BE46: 0
D47: 0 | L47: 0 | T47: 0 | Z47: 0 | AF47: 0 | AK47: 0 | AP47: 0 | AS47: 0 | AX47: 0 | AY47: 0 | BB47: 0 | BE47: 0
D48: 0 | L48: 0 | T48: 0 | Z48: 0 | AF48: 0 | AK48: 0 | AP48: 0 | AS48: 0 | AX48: 0 | AY48: 0 | BB48: 0 | BE48: 0
D49: 0 | L49: 0 | T49: 0 | Z49: 0 | AF49: 0 | AK49: 0 | AP49: 0 | AS49: 0 | AX49: 0 | AY49: 0 | BB49: 0 | BE49: 0
D50: 0 | L50: 0 | T50: 0 | Z50: 0 | AF50: 0 | AK50: 0 | AP50: 0 | AS50: 0 | AX50: 0 | AY50: 0 | BB50: 0 | BE50: 0
D51: 0 | L51: 0 | T51: 0 | Z51: 0 | AF51: 0 | AK51: 0 | AP51: 0 | AS51: 0 | AX51: 0 | AY51: 0 | BB51: 0 | BE51: 0
D52: 0 | L52: 0 | T52: 0 | Z52: 0 | AF52: 0 | AK52: 0 | AP52: 0 | AS52: 0 | AX52: 0 | AY52: 0 | BB52: 0 | BE52: 0
D53: 0 | L53: 0 | T53: 0 | Z53: 0 | AF53: 0 | AK53: 0 | AP53: 0 | AS53: 0 | AX53: 0 | AY53: 0 | BB53: 0 | BE53: 0
D54: 0 | L54: 0 | T54: 0 | Z54: 0 | AF54: 0 | AK54: 0 | AP54: 0 | AS54: 0 | AX54: 0 | AY54: 0 | BB54: 0 | BE54: 0
D55: 0 | L55: 0 | T55: 0 | Z55: 0 | AF55: 0 | AK55: 0 | AP55: 0 | AS55: 0 | AX55: 0 | AY55: 0 | BB55: 0 | BE55: 0
D56: 0 | L56: 0 | T56: 0 | Z56: 0 | AF56: 0 | AK56: 0 | AP56: 0 | AS56: 0 | AX56: 0 | AY56: 0 | BB56: 0 | BE56: 0
B57: Total or Ave. | D57: =SUM(D33:D56) -> 0 | E57: =SUM(E33:E56) -> 0 | G57: =SUM(G33:G56) -> 0 | H57: =IFERROR((IF(MAX($H33:$H56)=0,"0",(SUMPRODUCT(G33:G56,H33:H56)/G57))),0) -> 0 | I57: =SUM(I33:I56) -> 0 | J57: =IFERROR((IF(MAX($J33:$J56)=0,"0",(SUMPRODUCT(I33:I56,J33:J56)/I57))),0) -> 0 | L57: =SUM(L33:L56) -> 0 | M57: =SUM(M33:M56) -> 0 | O57: =SUM(O33:O56) -> 0 | P57: =IFERROR(SUMPRODUCT($O$33:$O$56,P33:P56)/SUM(O33:O56),"0") -> 0 | Q57: =SUM(Q33:Q56) -> 0 | R57: =IFERROR(SUMPRODUCT($Q$33:$Q$56,R33:R56)/SUM($Q$33:$Q$56),"0") -> 0 | T57: =SUM(T33:T56) -> 0 | U57: =SUM(U33:U56) -> 0 | W57: =IFERROR(SUMPRODUCT(T33:T56,W33:W56)/T57,0) -> 0 | X57: =SUM(X33:X56) -> 0 | Z57: =SUM(Z33:Z56) -> 0 | AA57: =SUM(AA33:AA56) -> 0 | AC57: =IFERROR(SUMPRODUCT(Z33:Z56,AC33:AC56)/(Z57),0) -> 0 | AD57: =SUM(AD33:AD56) -> 0 | AF57: =SUM(AF33:AF56) -> 0 | AG57: =SUM(AG33:AG56) -> 0 | AI57: =IFERROR(SUMPRODUCT(AF33:AF56,AI33:AI56)/AF57,0) -> 0 | AK57: =SUM(AK33:AK56) -> 0 | AL57: =SUM(AL33:AL56) -> 0 | AN57: =IFERROR(SUMPRODUCT(AK33:AK56,AN33:AN56)/AK57,0) -> 0 | AP57: =SUM(AP33:AP56) -> 0 | AQ57: =SUM(AQ33:AQ56) -> 0 | AS57: 0 | AT57: =SUM(AT33:AT56) -> 0 | AU57: =SUM(AU33:AU56) -> 0 | AV57: =SUM(AV33:AV56) -> 0 | AW57: 0 | AX57: =AW57-AT57+AU57+AV57-AY57 -> 0 | AY57: =0.025*AU57 -> 0 | BA57: =SUM(BA33:BA56) -> 0 | BB57: =SUM(BB33:BB56) -> 0 | BD57: =IFERROR(SUMPRODUCT(BD33:BD56,BE33:BE56)/BE57,0) -> 0 | BE57: =SUM(BE33:BE56) -> 0 | BG57: =SUM(BG33:BG56) -> 0 | BH57: =SUM(BH33:BH56) -> 0 | BI57: =SUM(BI33:BI56) -> 0 | BJ57: =IFERROR(SUMPRODUCT(BI33:BI56,BJ33:BJ56)/BI57,0) -> 0 | BK57: =IFERROR(SUMPRODUCT(BI33:BI56,BK33:BK56)/BI57,0) -> 0 | BL57: =SUM(BL33:BL56) -> 0 | BM57: =SUM(BM33:BM56) -> 0
B58: Total mmBTU in HHV | X58: =X57 -> 0 | AD58: =AD57 -> 0 | BG58: =BG57 -> 0 | BI58: =BI57*(1-BJ57) -> 0
B59: Convert to mmBTU, in LHV | X59: =X58*Fuel_Specs!$H$10 -> 0 | AD59: =AD58*Fuel_Specs!$H$10 -> 0 | BG59: =BG58*Fuel_Specs!$H$10 -> 0 | BH59: =BH57*Fuel_Specs!H11 -> 0 | BN59: Finished Fuel Transport
B60: Convert to BTU/gallons fuel throughput | BG60: =(BG59-AD59-X59) -> 0 | BH60: 3.3.a. Emission Factor for Biogas gCO2e/mmBTU | BI60: 3.4.a. Emission Factor for Biomass gCO2e/dry ton | BK60: 3.6.a. Emission Factor for Biomass Transportation gCO2e/dry ton-mile | BN60: HDD Truck | BO60: Rail
B61: EF Units | D61: gCO2e/bushel | H61: gCO2e/bushel-mile | J61: gCO2e/bushel-mile | L61: gCO2e/bushel | P61: gCO2e/bushel-mile | R61: gCO2e/bushel-mile | X61: gCO2e/mmBTU NG | AD61: gCO2e/mmBTU NG | AS61: gCO2e/lb DGS | BB61: gCO2e/lb Enzyme | BG61: gCO2e/mmBTU NG | BL61: gCO2e/kWh | BM61: gCO2e/kWh | BN61: gCO2e/gal-mile | BO61: gCO2e/gal-mile
B62: EF | D62: ='EF Tables'!G17 -> 6425.228634 | H62: 4.308954964 | J62: 0.7639320194 | L62: ='EF Tables'!G26 -> 7249.094361 | P62: 4.308954964 | R62: 0.7639320194 | X62: ='EF Tables'!$C$8 -> 73352.02174 | AD62: ='EF Tables'!$C$8 -> 73352.02174 | AS62: ='EF Tables'!$F$58 -> 173.9779558 | BB62: 1207.068825 | BG62: ='EF Tables'!$C$7 -> 73411.62174 | BL62: =HLOOKUP($BM$29,'EF Tables'!$C$2:$AH$5,2,FALSE) -> 228.6455055 | BM62: 0 | BN62: ='EF Tables'!$H$45 -> 0.413535657 | BO62: ='EF Tables'!$H$47 -> 0.08984888822
B63: GHG Emissions, gCO2e | D63: =D57*D62 -> 0 | H63: =G57*H57*H62 -> 0 | J63: =I57*J57*J62 -> 0 | L63: =L57*L62 -> 0 | P63: =O57*P57*P62 -> 0 | R63: =Q57*R57*R62 -> 0 | X63: =X59*X62 -> 0 | AD63: =AD59*AD62 -> 0 | AS63: =AS57*AS62*AX57 -> 0 | BB63: =BB57*BB62 -> 0 | BG63: =BG60*BG62 -> 0 | BH63: =BH59*BH62 -> 0 | BI63: =BI58*BI62 -> 0 | BK63: =BK57*BK62*BI58 -> 0 | BL63: =BL57*BL62 -> 0 | BM63: =BM57*BM62 -> 0 | BN63: =AX57*BO35*BN62 -> 0 | BO63: =AX57*BO33*BO62 -> 0
B65: Allocation Calculations
O67: Total DGS (dry basis) | R67: DGS allocated to Corn | T67: DGS allocated to Sorghum | V67: Drying emissions Allocated to Corn | X67: Drying Emissions Allocated to Sorghum | AD67: Allocated Ethanol Gallons | AL67: Corn/Sorghum Fiber Natural Gas and Electricity Emissions | AN67: Corn/Sorghum Fiber Transportation Emissions | AX67: Allocated Biogas Usage and Transportation Emissions | BB67: Allocated Biomass Emissions | BF67: Allocated Biomass Transportation Emissions
C68: Corn Feedstock Usage | E68: Corn Farming, Fertilizers, and N2O in soil Emissions | G68: Corn Transportation Emissions | I68: Sorghum Feedstock Usage | K68: Sorghum Farming, Fertilizers, and N2O in soil Emissions | M68: Sorghum Transportation Emissions | O68: DGS totals | P68: dry tons | Q68: dry lbs | R68: Corn | S68: lbs | T68: Sorghum | U68: lbs | V68: Drying emissions | Z68: Allocated Co-Product Credit Emissions | AD68: Total Ethanol Gallons Allocated (gals) | AF68: Corn | AG68: Gallons | AH68: MJ | AI68: Sorghum | AJ68: Gallons | AK68: MJ | AM68: gCO2e | AO68: gCO2e | AP68: Allocated Natural Gas Emissions | AT68: Allocated Electricity Emissions | AX68: Corn | AZ68: Sorghum | BB68: Corn | BD68: Sorghum | BF68: Corn | BH68: Sorghum | BJ68: Allocated Truck Transportation Emissions | BN68: Allocated Rail Transportation Emissions
C69: Percent Corn Use | D69: =IFERROR(D57/(D57+L57),0) -> 0 | E69: Corn | F69: gCO2e | G69: Corn | H69: gCO2e | I69: Percent Sorghum Used | J69: =IFERROR(L57/(L57+D57),0) -> 0 | K69: Sorghum | L69: gCO2e | M69: Sorghum | N69: gCO2e | O69: DDGS | P69: =T57*(1-W57) -> 0 | Q69: =P69*2000 -> 0 | R69: DDGS | S69: =IFERROR(P69*$D$69*2000,0) -> 0 | T69: DDGS | U69: =IFERROR(P69*$J$69*2000,0) -> 0 | V69: Corn | W69: gCO2e | X69: Sorghum | Y69: gCO2e | Z69: Corn | AA69: gCO2e | AB69: Sorghum | AC69: gCO2e | AD69: corn | AE69: =IFERROR((AX57*D69)-(AE72*D69),0) -> 0 | AF69: DDGS | AG69: =IFERROR(AE69*S69/S72,0) -> 0 | AH69: =IFERROR(AG69*Fuel_Specs!B8/1000000*Fuel_Specs!H40,0) -> 0 | AI69: DDGS | AJ69: =IFERROR(AE70*U69/U72,0) -> 0 | AK69: =IFERROR(AJ69*Fuel_Specs!B8/1000000*Fuel_Specs!H40,0) -> 0 | AL69: NG emissions | AM69: =IFERROR(BG63*AE72/AX57,0) -> 0 | AN69: Truck | AO69: =IFERROR(AE72*BN62*BO35,0) -> 0 | AP69: Corn | AQ69: gCO2e | AR69: Sorghum | AS69: gCO2e | AT69: Corn | AU69: gCO2e | AV69: Sorghum | AW69: gCO2e | AX69: DGS | AY69: =IFERROR(BH63*AG69/AX57,0) -> 0 | AZ69: DGS | BA69: =IFERROR(BH63*AJ69/AX57,0) -> 0 | BB69: DGS | BC69: =IFERROR($BI$63*AG69/$AX$57,0) -> 0 | BD69: DGS | BE69: =IFERROR($BI$63*AJ69/$AX$57,0) -> 0 | BF69: DGS | BG69: =IFERROR($BK$63*AG69/$AX$57,0) -> 0 | BH69: DGS | BI69: =IFERROR($BK$63*AJ69/$AX$57,0) -> 0 | BJ69: Corn | BK69: gCO2e | BL69: Sorghum | BM69: gCO2e | BN69: Corn | BO69: gCO2e | BP69: Sorghum | BQ69: gCO2e
E70: DDGS | F70: =IFERROR(D63*AG69/AE69,0) -> 0 | G70: DDGS | H70: =IFERROR((H63+J63+'EF Tables'!D31)*AG69/AE69,0) -> 0 | K70: DDGS | L70: =IFERROR(L63*AJ69/AE70,0) -> 0 | M70: DDGS | N70: =IFERROR((P63+R63+'EF Tables'!D36)*AJ69/AE70,0) -> 0 | O70: MDGS | P70: =Z57*(1-AC57) -> 0 | Q70: =P70*2000 -> 0 | R70: MDGS | S70: =IFERROR(P70*$D$69*2000,0) -> 0 | T70: MDGS | U70: =IFERROR(P70*$J$69*2000,0) -> 0 | V70: DDGS | W70: =IFERROR(X$63*S69/Q69,0) -> 0 | X70: DDGS | Y70: =IFERROR(X63*U69/Q69,0) -> 0 | Z70: DDGS | AA70: =IFERROR(AS63*S69/Q72,0) -> 0 | AB70: DDGS | AC70: =IFERROR(AS63*U69/Q72,0) -> 0 | AD70: sorghum | AE70: =IFERROR((AX57*J69)-(AE72*J69),0) -> 0 | AF70: MDGS | AG70: =IFERROR(AE69*S70/S72,0) -> 0 | AH70: =IFERROR(AG70*Fuel_Specs!B8/1000000*Fuel_Specs!H40,0) -> 0 | AI70: MDGS | AJ70: =IFERROR(AE70*U70/U72,0) -> 0 | AK70: =IFERROR(AJ70*Fuel_Specs!B8/1000000*Fuel_Specs!H40,0) -> 0 | AL70: Electricity emissions | AM70: =IFERROR(BL63*AE72/AX57,0) -> 0 | AN70: Rail | AO70: =IFERROR(AE72*BO33*BO62,0) -> 0 | AP70: DDGS | AQ70: =IFERROR($BG$63*AG69/$AX$57,0) -> 0 | AR70: DDGS | AS70: =IFERROR($BG$63*AJ69/$AX$57,0) -> 0 | AT70: DDGS | AU70: =IFERROR($BL$63*AG69/$AX$57,0) -> 0 | AV70: DDGS | AW70: =IFERROR($BL$63*AJ69/$AX$57,0) -> 0 | AX70: MDGS | AY70: =IFERROR(BH63*AG70/AX57,0) -> 0 | AZ70: MDGS | BA70: =IFERROR(BH63*AJ70/AX57,0) -> 0 | BB70: MDGS | BC70: =IFERROR($BI$63*AG70/$AX$57,0) -> 0 | BD70: MDGS | BE70: =IFERROR($BI$63*AJ70/$AX$57,0) -> 0 | BF70: MDGS | BG70: =IFERROR($BK$63*AG70/$AX$57,0) -> 0 | BH70: MDGS | BI70: =IFERROR($BK$63*AJ70/$AX$57,0) -> 0 | BJ70: DDGS | BK70: =IFERROR($BO$35*$BN$62*AG69,0) -> 0 | BL70: DDGS | BM70: =IFERROR($BN$62*$BO$35*AJ69,0) -> 0 | BN70: DDGS | BO70: =IFERROR($BO$33*$BO$62*AG69,0) -> 0 | BP70: DDGS | BQ70: =IFERROR($BO$62*$BO$33*AJ69,0) -> 0
E71: MDGS | F71: =IFERROR(D63*AG70/AE69,0) -> 0 | G71: MDGS | H71: =IFERROR((H63+J63+'EF Tables'!D31)*AG70/AE69,0) -> 0 | K71: MDGS | L71: =IFERROR(L63*AJ70/AE70,0) -> 0 | M71: MDGS | N71: =IFERROR((P63+R63+'EF Tables'!D36)*AJ70/AE70,0) -> 0 | O71: WDGS | P71: =AF57*(1-AI57) -> 0 | Q71: 0 | R71: WDGS | S71: =IFERROR(P71*$D$69*2000,0) -> 0 | T71: WDGS | U71: =IFERROR(P71*$J$69*2000,0) -> 0 | V71: MDGS | W71: =IFERROR(AD63*S70/Q70,0) -> 0 | X71: MDGS | Y71: =IFERROR(AD63*U70/Q70,0) -> 0 | Z71: MDGS | AA71: =IFERROR(AS63*S70/Q72,0) -> 0 | AB71: MDGS | AC71: =IFERROR(AS63*U70/Q72,0) -> 0 | AF71: WDGS | AG71: =IFERROR(AE69*S71/S72,0) -> 0 | AH71: =IFERROR(AG71*Fuel_Specs!B8/1000000*Fuel_Specs!H40,0) -> 0 | AI71: WDGS | AJ71: =IFERROR(AE70*U71/U72,0) -> 0 | AK71: =IFERROR(AJ71*Fuel_Specs!B8/1000000*Fuel_Specs!H40,0) -> 0 | AP71: MDGS | AQ71: =IFERROR($BG$63*AG70/$AX$57,0) -> 0 | AR71: MDGS | AS71: =IFERROR($BG$63*AJ70/$AX$57,0) -> 0 | AT71: MDGS | AU71: =IFERROR($BL$63*AG70/$AX$57,0) -> 0 | AV71: MDGS | AW71: =IFERROR($BL$63*AJ70/$AX$57,0) -> 0 | AX71: WDGS | AY71: =IFERROR(BH63*AG71/AX57,0) -> 0 | AZ71: WDGS | BA71: =IFERROR(BH63*AJ71/AX57,0) -> 0 | BB71: WDGS | BC71: =IFERROR($BI$63*AG71/$AX$57,0) -> 0 | BD71: WDGS | BE71: =IFERROR($BI$63*AJ71/$AX$57,0) -> 0 | BF71: WDGS | BG71: =IFERROR($BK$63*AG71/$AX$57,0) -> 0 | BH71: WDGS | BI71: =IFERROR($BK$63*AJ71/$AX$57,0) -> 0 | BJ71: MDGS | BK71: =IFERROR($BO$35*$BN$62*AG70,0) -> 0 | BL71: MDGS | BM71: =IFERROR($BN$62*$BO$35*AJ70,0) -> 0 | BN71: MDGS | BO71: =IFERROR($BO$33*$BO$62*AG70,0) -> 0 | BP71: MDGS | BQ71: =IFERROR($BO$62*$BO$33*AJ70,0) -> 0
E72: WDGS | F72: =IFERROR(D63*AG71/AE69,0) -> 0 | G72: WDGS | H72: =IFERROR((H63+J63+'EF Tables'!D31)*AG71/AE69,0) -> 0 | K72: WDGS | L72: =IFERROR(L63*AJ71/AE70,0) -> 0 | M72: WDGS | N72: =IFERROR((P63+R63+'EF Tables'!D36)*AJ71/AE70,0) -> 0 | O72: Total DGS | P72: =SUM(P69:P71) -> 0 | Q72: =SUM(Q69:Q71) -> 0 | R72: Total DGS from Corn | S72: =SUM(S69:S71) -> 0 | T72: Total DGS Sorghum | U72: =SUM(U69:U71) -> 0 | V72: WDGS | W72: 0 | X72: WDGS | Y72: 0 | Z72: WDGS | AA72: =IFERROR(AS63*S71/Q72,0) -> 0 | AB72: WDGS | AC72: =IFERROR(AS63*U71/Q72,0) -> 0 | AD72: Corn/Sorghum Fiber | AE72: =IFERROR(BE57,0) -> 0 | AF72: Corn/Sorghum Fiber | AG72: =AE72 -> 0 | AH72: =IFERROR(AE72*Fuel_Specs!B8/1000000*Fuel_Specs!H40,0) -> 0 | AP72: WDGS | AQ72: =IFERROR($BG$63*AG71/$AX$57,0) -> 0 | AR72: WDGS | AS72: =IFERROR($BG$63*AJ71/$AX$57,0) -> 0 | AT72: WDGS | AU72: =IFERROR($BL$63*AG71/$AX$57,0) -> 0 | AV72: WDGS | AW72: =IFERROR($BL$63*AJ71/$AX$57,0) -> 0 | AX72: Corn/Sorghum Fiber | AY72: =IFERROR(BH63*AE72/AX57,0) -> 0 | BB72: Corn/Sorghum Fiber | BC72: =IFERROR(BI63*AE72/AX57,0) -> 0 | BF72: Corn/Sorghum Fiber | BG72: =IFERROR(BK63*AE72/AX57,0) -> 0 | BJ72: WDGS | BK72: =IFERROR($BO$35*$BN$62*AG71,0) -> 0 | BL72: WDGS | BM72: =IFERROR($BN$62*$BO$35*AJ71,0) -> 0 | BN72: WDGS | BO72: =IFERROR($BO$33*$BO$62*AG71,0) -> 0 | BP72: WDGS | BQ72: =IFERROR($BO$62*$BO$33*AJ71,0) -> 0
AD73: Allocated Denatured Ethanol Gallons
AD74: Total Denatured Ethanol Gallons Allocated (gals) | AF74: Corn | AI74: Sorghum
AD75: corn | AE75: =IFERROR(AE69+(AE69*$AY$57/$AX$57),0) -> 0 | AF75: DDGS | AG75: =IFERROR(AG69+(AG69*$AY$57/$AX$57),0) -> 0 | AI75: DDGS | AJ75: =IFERROR(AJ69+(AJ69*$AY$57/$AX$57),0) -> 0
B76: Section 4. CI Calculation Details | AD76: sorghum | AE76: =IFERROR(AE70+(AE70*$AY$57/$AX$57),0) -> 0 | AF76: MDGS | AG76: =IFERROR(AG70+(AG70*$AY$57/$AX$57),0) -> 0 | AI76: MDGS | AJ76: =IFERROR(AJ70+(AJ70*$AY$57/$AX$57),0) -> 0
B77: Category | C77: Parameters | E77: Corn Ethanol | I77: Sorghum Ethanol | AF77: WDGS | AG77: =IFERROR(AG71+(AG71*$AY$57/$AX$57),0) -> 0 | AI77: WDGS | AJ77: =IFERROR(AJ71+(AJ71*$AY$57/$AX$57),0) -> 0
E78: DDGS | F78: MDGS | G78: WDGS | H78: Corn Fiber | I78: DDGS | J78: MDGS | K78: WDGS | AD78: Corn/Sorghum Fiber | AE78: 0 | AF78: Corn/Sorghum Fiber | AG78: =IFERROR(AG72+(AG72*$AY$57/$AX$57),0) -> 0
B79: Feedstock Production | C79: Electricity Mix | E79: =D25 -> 1-U.S Ave Mix | I79: =D25 -> 1-U.S Ave Mix
C80: Ethanol Yield, gal/bu | E80: =IF(D57=0,0,IFERROR(AX57/(D57+L57),0)) -> 0 | I80: =IF(L57=0,0,IFERROR(AX57/(D57+L57),0)) -> 0
C81: DGS Yield. Lbs DGS/gal ETOH | E81: =IF(D57=0,0,AS57) -> 0 | I81: =IF(L57=0,0,AS57) -> 0
C82: Corn /Sorghum Farming, Fertilizers and Ag Chemicals, N2O in Soil, gCO2e/MJ | E82: =IFERROR((E83)/AH69,0) -> 0 | F82: =IFERROR((F83)/AH70,0) -> 0 | G82: =IFERROR((G83)/AH71,0) -> 0 | I82: =IFERROR((I83)/AK69,0) -> 0 | J82: =IFERROR((J83)/AK70,0) -> 0 | K82: =IFERROR((K83)/AK71,0) -> 0
D83: gCO2e | E83: =F70 -> 0 | F83: =F71 -> 0 | G83: =F72 -> 0 | I83: =L70 -> 0 | J83: =L71 -> 0 | K83: =L72 -> 0
C84: Corn/Sorghum Transport, gCO2e/MJ | E84: =IFERROR((E85)/AH69,0) -> 0 | F84: =IFERROR((F85)/AH70,0) -> 0 | G84: =IFERROR((G85)/AH71,0) -> 0 | I84: =IFERROR((I85)/AK69,0) -> 0 | J84: =IFERROR((J85)/AK70,0) -> 0 | K84: =IFERROR((K85)/AK71,0) -> 0
D85: gCO2e | E85: =H70 -> 0 | F85: =H71 -> 0 | G85: =H72 -> 0 | I85: =N70 -> 0 | J85: =N71 -> 0 | K85: =N72 -> 0
C86: Co-product Credit, gCO2e/MJ | E86: =IFERROR((E87)/AH69,0) -> 0 | F86: =IFERROR((F87)/AH70,0) -> 0 | G86: =IFERROR((G87)/AH71,0) -> 0 | I86: =IFERROR((I87)/AK69,0) -> 0 | J86: =IFERROR((J87)/AK70,0) -> 0 | K86: =IFERROR((K87)/AK71,0) -> 0
D87: gCO2e | E87: =IFERROR(-AA70,0) -> 0 | F87: =IFERROR(-AA71,0) -> 0 | G87: =IFERROR(-AA72,0) -> 0 | I87: =IFERROR(-AC70,0) -> 0 | J87: =IFERROR(-AC71,0) -> 0 | K87: =IFERROR(-AC72,0) -> 0
B88: Ethanol Production | C88: Electricity Mix | E88: =BM29 -> 2-WAMX Mix | I88: =BM29 -> 2-WAMX Mix
C89: Ethanol Production
C90: Total feedstock used, bushels | E90: =(D57+L57) -> 0 | I90: =IF(L57=0,0,D57+L57) -> 0
C91: Total undenatured ethanol, gallons | E91: =AX57 -> 0 | I91: =IF(L57=0,0,AX57) -> 0
C92: Ethanol Yield, gal ethanol /bushel | E92: =IFERROR(E91/(D57+L57),0) -> 0 | I92: =IF(L57=0,0,IFERROR(I91/(D57+L57),0)) -> 0
C93: Natural Gas Usage, gCO2e/MJ | E93: =IFERROR((E94)/AH69,0) -> 0 | F93: =IFERROR((F94)/AH70,0) -> 0 | G93: =IFERROR((G94)/AH71,0) -> 0 | H93: =IFERROR((H94)/AH72,0) -> 0 | I93: =IFERROR((I94)/AK69,0) -> 0 | J93: =IFERROR((J94)/AK70,0) -> 0 | K93: =IFERROR((K94)/AK71,0) -> 0
C94: gCO2e | E94: =AQ70 -> 0 | F94: =AQ71 -> 0 | G94: =AQ72 -> 0 | H94: =AM69 -> 0 | I94: =AS70 -> 0 | J94: =AS71 -> 0 | K94: =AS72 -> 0
C95: Natural Gas Usage for Drying, gCO2e/MJ | E95: =IFERROR((E96)/AH69,0) -> 0 | F95: =IFERROR((F96)/AH70,0) -> 0 | G95: =IFERROR((G96)/AH71,0) -> 0 | I95: =IFERROR((I96)/AK69,0) -> 0 | J95: =IFERROR((J96)/AK70,0) -> 0 | K95: =IFERROR((K96)/AK71,0) -> 0
C96: gCO2e | E96: =IFERROR(W70,0) -> 0 | F96: =IFERROR(W71,0) -> 0 | G96: 0 | I96: =IFERROR(Y70,0) -> 0 | J96: =IFERROR(Y71,0) -> 0 | K96: 0
C97: Electricity Usage, gCO2e/MJ | E97: =IFERROR((E98)/AH69,0) -> 0 | F97: =IFERROR((F98)/AH70,0) -> 0 | G97: =IFERROR((G98)/AH71,0) -> 0 | H97: =IFERROR((H98)/AH72,0) -> 0 | I97: =IFERROR((I98)/AK69,0) -> 0 | J97: =IFERROR((J98)/AK70,0) -> 0 | K97: =IFERROR((K98)/AK71,0) -> 0
C98: gCO2e | E98: =AU70 -> 0 | F98: =AU71 -> 0 | G98: =AU72 -> 0 | H98: =AM70 -> 0 | I98: =AW70 -> 0 | J98: =AW71 -> 0 | K98: =AW72 -> 0
C99: Biogas Usage and Transportation, gCO2e/MJ | E99: =IFERROR(E100/AH69,0) -> 0 | F99: =IFERROR(F100/AH70,0) -> 0 | G99: =IFERROR(G100/AH71,0) -> 0 | H99: =IFERROR(H100/AH72,0) -> 0 | I99: =IFERROR(I100/AK69,0) -> 0 | J99: =IFERROR(J100/AK70,0) -> 0 | K99: =IFERROR(K100/AK71,0) -> 0
D100: gCO2e | E100: =AY69 -> 0 | F100: =AY70 -> 0 | G100: =AY71 -> 0 | H100: =AY72 -> 0 | I100: =BA69 -> 0 | J100: =BA70 -> 0 | K100: =BA71 -> 0
C101: Biomass Usage and Transportation, gCO2e/MJ | E101: =IFERROR(E102/AH69,0) -> 0 | F101: =IFERROR(F102/AH70,0) -> 0 | G101: =IFERROR(G102/AH71,0) -> 0 | H101: =IFERROR(H102/AH72,0) -> 0 | I101: =IFERROR(I102/AK69,0) -> 0 | J101: =IFERROR(J102/AK70,0) -> 0 | K101: =IFERROR(K102/AK71,0) -> 0
D102: gCO2e | E102: =BC69+BG69 -> 0 | F102: =BC70+BG70 -> 0 | G102: =BC71+BG71 -> 0 | H102: =BC72+BG72 -> 0 | I102: =BE69+BI69 -> 0 | J102: =BE70+BI70 -> 0 | K102: =BE71+BI71 -> 0
C103: Chemicals Usage (Standard) | E103: =IFERROR((E104)/AH69,0) -> 0 | F103: =IFERROR((F104)/AH70,0) -> 0 | G103: =IFERROR((G104)/AH71,0) -> 0 | H103: =IFERROR((H104)/AH72,0) -> 0 | I103: =IFERROR((I104)/AK69,0) -> 0 | J103: =IFERROR((J104)/AK70,0) -> 0 | K103: =IFERROR((K104)/AK71,0) -> 0
C104: gCO2e | E104: ='EF Tables'!C41*EtOH!AG69 -> 0 | F104: ='EF Tables'!C41*AG70 -> 0 | G104: ='EF Tables'!C41*AG71 -> 0 | H104: =BB63 -> 0 | I104: ='EF Tables'!C41*AJ69 -> 0 | J104: ='EF Tables'!C41*AJ70 -> 0 | K104: ='EF Tables'!C41*AJ71 -> 0
C105: Ethanol Transport HDD Truck, gCO2e/MJ | E105: =IFERROR((E106)/AH69,0) -> 0 | F105: =IFERROR((F106)/AH70,0) -> 0 | G105: =IFERROR((G106)/AH71,0) -> 0 | H105: =IFERROR((H106)/AH72,0) -> 0 | I105: =IFERROR((I106)/AK69,0) -> 0 | J105: =IFERROR((J106)/AK70,0) -> 0 | K105: =IFERROR((K106)/AK71,0) -> 0
C106: From EtOH Plant to railyard, gCO2e | E106: =BK70 -> 0 | F106: =BK71 -> 0 | G106: =BK72 -> 0 | H106: =AO69 -> 0 | I106: =BM70 -> 0 | J106: =BM71 -> 0 | K106: =BM72 -> 0
C107: Ethanol Transport Rail, gCO2e/MJ | E107: =IFERROR((E108)/AH69,0) -> 0 | F107: =IFERROR((F108)/AH70,0) -> 0 | G107: =IFERROR((G108)/AH71,0) -> 0 | H107: =IFERROR((H108)/AH72,0) -> 0 | I107: =IFERROR((I108)/AK69,0) -> 0 | J107: =IFERROR((J108)/AK70,0) -> 0 | K107: =IFERROR((K108)/AK71,0) -> 0
C108: From railyard to WA railyard, gCO2e | E108: =BO70 -> 0 | F108: =BO71 -> 0 | G108: =BO72 -> 0 | H108: =AO70 -> 0 | I108: =BQ70 -> 0 | J108: =BQ71 -> 0 | K108: =BQ72 -> 0
C109: Ethanol Distribution, gCO2e/MJ | E109: =IFERROR((E110)/AH69,0) -> 0 | F109: =IFERROR((F110)/AH70,0) -> 0 | G109: =IFERROR((G110)/AH71,0) -> 0 | H109: =IFERROR((H110)/AH72,0) -> 0 | I109: =IFERROR((I110)/AK69,0) -> 0 | J109: =IFERROR((J110)/AK70,0) -> 0 | K109: =IFERROR((K110)/AK71,0) -> 0
C110: From terminal to fuel stations, gCO2e | E110: ='EF Tables'!D46 -> 0 | F110: ='EF Tables'!D47 -> 0 | G110: ='EF Tables'!D48 -> 0 | H110: ='EF Tables'!D49 -> 0 | I110: ='EF Tables'!D51 -> 0 | J110: ='EF Tables'!D52 -> 0 | K110: ='EF Tables'!D53 -> 0
C111: Denaturant CI, gCO2e/MJ | E111: =IF(E93=0,0,'EF Tables'!D75) -> 0 | F111: =IF(F93=0,0,'EF Tables'!E75) -> 0 | G111: =IF(G93=0,0,'EF Tables'!F75) -> 0 | H111: =IF(BE57=0,0,'EF Tables'!G75) -> 0 | I111: =IF(I93=0,0,'EF Tables'!I75) -> 0 | J111: =IF(J93=0,0,'EF Tables'!J75) -> 0 | K111: =IF(K93=0,0,'EF Tables'!K75) -> 0
C112: Non-Combustion CI, gCO2e/MJ | E112: ='EF Tables'!C5 -> 0.08669474691 | F112: ='EF Tables'!C5 -> 0.08669474691 | G112: ='EF Tables'!C5 -> 0.08669474691 | H112: ='EF Tables'!C5 -> 0.08669474691 | I112: ='EF Tables'!C5 -> 0.08669474691 | J112: ='EF Tables'!C5 -> 0.08669474691 | K112: ='EF Tables'!C5 -> 0.08669474691
C113: Indirect Land Use, gCO2e/MJ | E113: ='EF Tables'!D61 -> 19.8 | F113: ='EF Tables'!D61 -> 19.8 | G113: ='EF Tables'!D61 -> 19.8 | H113: 0 | I113: ='EF Tables'!D62 -> 19.4 | J113: ='EF Tables'!D62 -> 19.4 | K113: ='EF Tables'!D62 -> 19.4

Sheet EF Tables
B1: Greenhouse Gases Emissions Factors Used in WA-GREET for Carbon Intensity Calculations (see "WA-GREET for EF Table")
B2: GHG Emission Factors | C2: 1-U.S Ave Mix | D2: 2-WAMX Mix | E2: 3-CAMX Mix | F2: 4-NWPP Mix | G2: 5-AZNM Mix | H2: 6-RMPA Mix | I2: 7-MROW Mix | J2: 8-SPNO Mix | K2: 9-SPSO Mix | L2: 10-ERCT Mix | M2: 11-MROE Mix | N2: 12-SRMW Mix | O2: 13-SRMV Mix | P2: 14-RFCM Mix | Q2: 15-RFCW Mix | R2: 16-SRTV Mix | S2: 17-SRSO Mix | T2: 18-NEWE Mix | U2: 19-NYUP Mix | V2: 20-RFCE Mix | W2: 21-NYLI Mix | X2: 22-NYCW Mix | Y2: 23-SRVC Mix | Z2: 24-FRCC Mix | AA2: 25-AKMS Mix | AB2: 26-AKGD Mix | AC2: 27-HIOA Mix | AD2: 28-HIMS Mix | AE2: 29-Brazilian Mix | AF2: 30-Canadian Mix | AG2: 31-ORMX Mix | AH2: 32-User Defined Mix
B3: Emissions from Electricity use (gCO2e/kWh) | C3: 578.8154711 | D3: 228.6455055 | E3: 368.982035 | F3: 476.1637376 | G3: 459.1688004 | H3: 852.1989761 | I3: 684.2900561 | J3: 793.2557705 | K3: 796.1109107 | L3: 638.3672025 | M3: 893.5624857 | N3: 925.9998651 | O3: 613.6692831 | P3: 786.7786546 | Q3: 738.5910633 | R3: 681.8861525 | S3: 627.9404825 | T3: 353.7814195 | U3: 227.8835334 | V3: 459.89499 | W3: 627.4100702 | X3: 353.2271726 | Y3: 491.1917286 | Z3: 601.2274513 | AA3: 160.3962391 | AB3: 748.5949197 | AC3: 1145.104425 | AD3: 682.9601586 | AE3: 181.5105028 | AF3: 166.0500613 | AG3: 462.032832 | AH3: =EtOH!$BO$25 -> 0
B5: Non-combustion (gCO2e/MJ) | C5: =2.239/Fuel_Specs!$I$8*Fuel_Specs!$B$17*$D$79 -> 0.08669474691
B6: Enzymes and Yeast (gCO2e/MJ) | C6: 2.02
B7: Natiral Gas for Ethanol Production (g CO2e/MMBtu) | C7: 73411.62174
B8: Natiral Gas for Drying DGS (g CO2e/MMBtu) | C8: 73352.02174
C10: Corn Farming, Fertilizers, N2O in soil
D11: Farming | E11: Fertilizers | F11: N2O in soil | G11: Total, gCO2e/bushel
C12: VOC | D12: 0.5079665324 | E12: 2.613678899
C13: CO | D13: 4.188250851 | E13: 3.179352393
C14: CH4 | D14: 1.842919923 | E14: 5.887625893
C15: N2O | D15: 0.0182383693 | E15: 0.7758703205 | F15: 10.69941862
C16: CO2 | D16: 618.7152107 | E16: 2166.87185
C17: Total, gCO2e/bushel | D17: =D12*Fuel_Specs!$B$17+D13*Fuel_Specs!$B$18+D14*Fuel_Specs!$B$15+D15*Fuel_Specs!$B$16+D16 -> 678.3879422 | E17: =E12*Fuel_Specs!$B$17+E13*Fuel_Specs!$B$18+E14*Fuel_Specs!$B$15+E15*Fuel_Specs!$B$16+E16 -> 2558.413944 | F17: =F12*Fuel_Specs!$B$17+F13*Fuel_Specs!$B$18+F14*Fuel_Specs!$B$15+F15*Fuel_Specs!$B$16+F16 -> 3188.426748 | G17: =SUM(D17:F17) -> 6425.228634
C19: Sorghum Farming, Fertilizers, N2O in soil
D20: Farming | E20: Fertilizers | F20: N2O is soil | G20: Total, gCO2e/bushel
C21: VOC | D21: 0.6237685974 | E21: 2.821535579
C22: CO | D22: 4.93116629 | E22: 3.592026946
C23: CH4 | D23: 2.087394381 | E23: 6.958350571
C24: N2O | D24: 0.0219536229 | E24: 0.8551433433 | F24: 11.60687609
C25: CO2 | D25: 961.5691234 | E25: 2317.026188
C26: Total, gCO2e/bushel | D26: =D21*Fuel_Specs!$B$17+D22*Fuel_Specs!$B$18+D23*Fuel_Specs!$B$15+D24*Fuel_Specs!$B$16+D25 -> 1029.989217 | E26: =E21*Fuel_Specs!$B$17+E22*Fuel_Specs!$B$18+E23*Fuel_Specs!$B$15+E24*Fuel_Specs!$B$16+E25 -> 2760.256068 | F26: =F21*Fuel_Specs!$B$17+F22*Fuel_Specs!$B$18+F23*Fuel_Specs!$B$15+F24*Fuel_Specs!$B$16+F25 -> 3458.849076 | G26: =SUM(D26:F26) -> 7249.094361
C29: Corn Transport | D29: MDT Truck - Farm to Stack | E29: HDDT | F29: Rail
C30: gCO2e/bushel-mile | D30: 17.25324645 | E30: 4.308201207 | F30: 0.7638109533
C31: gCO2e | D31: =(EtOH!E57)*10*D30 -> 0
C34: Sorghum | D34: MDT Truck - Farm to Stack | E34: HDDT | F34: Rail
C35: gCO2e/bushel-mile | D35: 17.25324645 | E35: 4.308201207 | F35: 0.7638109533
C36: gCO2e | D36: =(EtOH!M57)*10*D35 -> 0
C38: Chemical usage
C39: =C6*Fuel_Specs!H40 -> 2131.212817 | D39: gCO2e/mmBTU
C40: =C39/1000000 -> 0.002131212817 | D40: gCO2e/BTU
C41: =C40*Fuel_Specs!B8 -> 162.6754743 | D41: gCO2e/Gal
C44: Finished Fuel Distribution | G44: Washington EtOH Distribution (gCO2e/gal-mile)
C45: Corn | G45: HDT Truck | H45: 0.413535657
C46: DDGS | D46: =90*H45*EtOH!AG69 -> 0 | E46: gCO2e | G46: Barge | H46: 0.07384748621
C47: MDGS | D47: =90*H45*EtOH!AG70 -> 0 | E47: gCO2e | G47: Rail | H47: 0.08984888822
C48: WDGS | D48: =90*H45*EtOH!AG71 -> 0 | E48: gCO2e
C49: Corn Fiber | D49: =90*H45*EtOH!AE72 -> 0 | E49: gCO2e
C50: Sorghum
C51: DDGS | D51: =90*H45*EtOH!AJ69 -> 0 | E51: gCO2e
C52: MDGS | D52: =90*H45*EtOH!AJ70 -> 0 | E52: gCO2e
C53: WDGS | D53: =90*H45*EtOH!AJ71 -> 0 | E53: gCO2e
D54: -
C56: Co-product Credit - Corn Ethanol | H56: DGS Displacement Ratio (lb/lb DGS)
C57: Corn | D57: SBM | E57: Urea | F57: Total, gCO2e/bone-dry lb | H57: Corn | I57: 0.7811220546
C58: =89.622996275385+(EtOH!D67*(D30*$I$57*10+E30*I57*EtOH!H55+F30*I57*EtOH!J55))+(EtOH!J67*(D35*I57*10+E35*I57*EtOH!P55+F35*I57*EtOH!R55)) -> 89.62299628 | D58: 71.26719772 | E58: 13.08776177 | F58: =SUM(C58:E58) -> 173.9779558 | H58: SMB | I58: 0.3071759911
H59: Urea | I59: 0.02266782746
C60: Indirect Land Use (ILUC) | D60: gCO2e/MJ
C61: Corn | D61: 19.8
C62: Sorghum | D62: 19.4
C64: Denatured Ethanol (D-EtOH) Calculator
C65: Volume % Ethanol in D-EtOH | D65: 0.975 | F65: v/v EtOH/D-EtOH
C66: Volume % of Denaturant (CARBOB and "Other") in D-EtOH | D66: =IFERROR(EtOH!AY57/EtOH!AU57,0) -> 0 | F66: v/v CARBOB/D-EtOH
C67: Energy % Denaturant in D-EtOH | D67: =IFERROR(D66*Fuel_Specs!$I$6/81.51,0) -> 0 | F67: MJ/MJ CARBOB/D-EtOH
C68: CARBOB CI * | D68: 100.3660899
C69: 2010 Average Ethanol CI | D69: 75.39197493 | F69: g CO2e/MJ
C70: 2010 Denaturant CI (CARBOB CI without tailpipe N2O & CH4) | D70: 99.76825493 | F70: g CO2e/MJ
C71: Net Denaturant Contribution to CI | D71: =((1-D67)*D69+D67*D70)-D69 -> 0 | F71: g CO2e/MJ
C72: 2010 D-EtOH CI | D72: =(1-D67)*D69+D67*D70 -> 75.39197493 | F72: g CO2e/MJ
D73: Corn - DDGS | E73: Corn - MDGS | F73: Corn - WDGS | G73: Corn fiber | I73: Sorghum - DDGS | J73: Sorghum - MDGS | K73: Sorghum - WDGS
C74: Enter CI of any anhydrous ethanol (including ILUC) here: | D74: =EtOH!E82+EtOH!E84+EtOH!E86+EtOH!E93+EtOH!E95+EtOH!E97+EtOH!E103+EtOH!E105+EtOH!E107+EtOH!E109+EtOH!E112+EtOH!E113+EtOH!E99+EtOH!E101 -> 19.88669475 | E74: =EtOH!F82+EtOH!F84+EtOH!F86+EtOH!F93+EtOH!F95+EtOH!F97+EtOH!F103+EtOH!F105+EtOH!F107+EtOH!F109+EtOH!F112+EtOH!F113+EtOH!F99+EtOH!F101 -> 19.88669475 | F74: =EtOH!G82+EtOH!G84+EtOH!G86+EtOH!G93+EtOH!G95+EtOH!G97+EtOH!G103+EtOH!G105+EtOH!G107+EtOH!G109+EtOH!G112+EtOH!G113+EtOH!G99+EtOH!G101 -> 19.88669475 | G74: =EtOH!H93+EtOH!H97+EtOH!H103+EtOH!H105+EtOH!H107+EtOH!H109+EtOH!H112+EtOH!H99+EtOH!H101 -> 0.08669474691 | I74: =EtOH!I82+EtOH!I84+EtOH!I86+EtOH!I93+EtOH!I95+EtOH!I97+EtOH!I103+EtOH!I105+EtOH!I107+EtOH!I109+EtOH!I112+EtOH!I113+EtOH!I99+EtOH!I101 -> 19.48669475 | J74: =EtOH!J82+EtOH!J84+EtOH!J86+EtOH!J93+EtOH!J95+EtOH!J97+EtOH!J103+EtOH!J105+EtOH!J107+EtOH!J109+EtOH!J112+EtOH!J113+EtOH!J99+EtOH!J101 -> 19.48669475 | K74: =EtOH!K82+EtOH!K84+EtOH!K86+EtOH!K93+EtOH!K95+EtOH!K97+EtOH!K103+EtOH!K105+EtOH!K107+EtOH!K109+EtOH!K112+EtOH!K113+EtOH!K99+EtOH!K101 -> 19.48669475
C75: Denaturant, g/MJ | D75: =(1-$D$67)*D74+$D$67*$D$68-D74 -> 0 | E75: =(1-$D$67)*E74+$D$67*$D$68-E74 -> 0 | F75: =(1-$D$67)*F74+$D$67*$D$68-F74 -> 0 | G75: =(1-$D$67)*G74+$D$67*$D$68-G74 -> 0 | I75: =(1-$D$67)*I74+$D$67*$D$68-I74 -> 0 | J75: =(1-$D$67)*J74+$D$67*$D$68-J74 -> 0 | K75: =(1-$D$67)*K74+$D$67*$D$68-K74 -> 0
C78: Loss Factor
C79: For Feedstock and Fuel | D79: 1.000504498

Sheet Fuel_Specs
A2: 1) Specifications of Fuels
B3: Heating Value | D3: Density | E3: C ratio | F3: S ratio | G3: S ratio
B4: LHV | C4: HHV | E4: (% by wt) | F4: (ppm by wt) | G4: Actual ratio by wt | H4: LHV/HHV | I4: Energy Density
A5: Liquid Fuels: | B5: BTU/gal | C5: BTU/gal | D5: grams/gal | I5: MJ/gal
A6: Gasoline blendstock | B6: 116090 | C6: 124340 | D6: 2819 | E6: 0.863 | I6: 122.4814336
A7: CARBOB | B7: 113300 | C7: 121351.7271 | D7: 2767 | E7: 0.859 | I7: 119.5378278
A8: Ethanol | B8: 76330 | C8: 84530 | D8: 2988 | E8: 0.522 | F8: 0 | G8: 0 | H8: 0.9029930202 | I8: 80.53241303
A9: Gaseous Fuels (at 60F and 1atm): | B9: BTU/ft3 | C9: BTU/ft3 | D9: grams/ft3 | H9: LHV/HHV | I9: MJ/unit
A10: Natural gas | B10: 930 | C10: 1030 | D10: 20.8 | E10: 0.724 | F10: 6 | G10: 6e-06 | H10: =B10/C10 -> 0.9029126214 | I10: 0.98
A11: Pure Methane | B11: 910 | C11: 1010 | D11: 19.2 | H11: =B11/C11 -> 0.900990099
A13: 2) Global Warming Potentials of Greenhouse Gases: relative to CO2
A14: CO2 | B14: 1
A15: CH4 | B15: 25
A16: N2O | B16: 298
A17: VOC | B17: 3.116666667
A18: CO | B18: 1.571428571
A19: NO2 | B19: 0
A22: 3) Unit Conversion
A23: Mass | B23: 1 g | C23: 1 kg | D23: 1 metric ton | E23: 1 lb | F23: 1 short ton
A24: g | B24: 1 | C24: 1000 | D24: 1000000 | E24: 453.59237 | F24: 907184.74
A25: kg | B25: 0.001 | C25: 1 | D25: 1000 | E25: 0.45359237 | F25: 907.18474
A26: metric ton | B26: 1e-06 | C26: 0.001 | D26: 1 | E26: 0.00045359237 | F26: 0.90718474
A27: lb | B27: 0.002204622622 | C27: 2.204622622 | D27: 2204.622622 | E27: 1 | F27: 2000
A28: short ton | B28: 1.102311311e-06 | C28: 0.001102311311 | D28: 1.102311311 | E28: 0.0005 | F28: 1
A30: Volume | B30: 1 m3 | C30: 1 ml | D30: 1 L | E30: 1 gal | F30: 1 ft3
A31: m3 | B31: 1 | C31: 1e-06 | D31: 0.001 | E31: 0.003785411 | F31: 0.028316847
A32: ml | B32: 1000000 | C32: 1 | D32: 1000 | E32: 3785.411 | F32: 28316.847
A33: L | B33: 1000 | C33: 0.001 | D33: 1 | E33: 3.785411 | F33: 28.316847
A34: gal | B34: 264.1721071 | C34: 0.0002641721071 | D34: 0.2641721071 | E34: 1 | F34: 7.480521138
A35: ft3 | B35: 35.31466621 | C35: 3.531466621e-05 | D35: 0.03531466621 | E35: 0.1336805259 | F35: 1
A37: Energy | B37: 1 J | C37: 1kJ | D37: 1 MJ | E37: 1Wh | F37: 1 kWh | G37: 1 BTU | H37: 1 mmBTU
A38: J | B38: 1 | C38: 1000 | D38: 1000000 | E38: 3600 | F38: 3600000 | G38: 1055.05585 | H38: 1055055850
A39: kJ | B39: 0.001 | C39: 1 | D39: 1000 | E39: 3.6 | F39: 3600 | G39: 1.05505585 | H39: 1055055.85
A40: MJ | B40: 1e-06 | C40: 0.001 | D40: 1 | E40: 0.0036 | F40: 3.6 | G40: 0.00105505585 | H40: 1055.05585
A41: Wh | B41: 0.0002777777778 | C41: 0.2777777778 | D41: 277.7777778 | E41: 1 | F41: 1000 | G41: 0.2930710694 | H41: 293071.0694
A42: kWh | B42: 2.777777778e-07 | C42: 0.0002777777778 | D42: 0.2777777778 | E42: 0.001 | F42: 1 | G42: 0.0002930710694 | H42: 293.0710694
A43: BTU | B43: 0.0009478171227 | C43: 0.9478171227 | D43: 947.8171227 | E43: 3.412141642 | F43: 3412.141642 | G43: 1 | H43: 1000000
A44: mmBTU | B44: 9.478171227e-10 | C44: 9.478171227e-07 | D44: 0.0009478171227 | E44: 3.412141642e-06 | F44: 0.003412141642 | G44: 1e-06 | H44: 1
A46: 4) Corn Bushel Weight
A47: 56 | B47: lb/wet bushel
A48: =A47*(1-15%) -> 47.6 | B48: lb/dry bushel
